Cogmind - Beta 13 @@@ ROGUE MODE // 2024.04.11 @ 18:40:43 Player: gabr Result: Destroyed by Y-54 Guardian with Gatling Laser Performance ------------- Evolutions (4) 2000 Regions Visited (5) 1000 Robots Destroyed (80) 400 Value Destroyed (2036) 2036 Prototype IDs (2) 40 Alien Tech Used (0) 0 Bonus (132) 132 TOTAL SCORE: 5608 Bonus ------- High Alert Combat Kills 132 Cogmind --------- Core Integrity 0/850 Matter 181/300 Energy 100/100 System Corruption 7% Temperature Cool (12) Movement Core (50) Location -6/Factory Parts ------- > --- POWER (2) -------- (None) > --- PROPULSION (4) --- (None) > --- UTILITY (6) ------ Advanced Targeting Computer > --- WEAPON (3) ------- (None) > --- INVENTORY (5) ---- Flexi-carbon Leg Recoil Stabilizer Matter Filter Advanced ECM Suite Hacking Suite Peak State ------------ > --- POWER ------------ Light Nuclear Core Micro Nuclear Core > --- PROPULSION ------- Light Treads Light Treads Light Treads Advanced Treads > --- UTILITY ---------- Cryofiber Web Improved Heat Sink Medium Storage Unit Advanced Targeting Computer Weapon Cycler Improved Light Armor Plating > --- WEAPON ----------- Heavy Laser Heavy Laser Heavy Laser > --- INVENTORY -------- Recoil Stabilizer Matter Filter Advanced ECM Suite Hacking Suite Heavy Laser Grenade Launcher [Rating: 43] Favorites ----------- Power Light Nuclear Core Engine Light Ion Engine Power Core Light Nuclear Core Propulsion Light Treads Treads Light Treads Leg Aluminum Leg Wheel Wheel Utility Advanced Targeting Computer Device Improved Heat Sink Storage Medium Storage Unit Processor Advanced Targeting Computer Protection Improved Light Armor Plating Weapon Heavy Laser Energy Gun Heavy Laser Ballistic Gun Assault Rifle Ballistic Cannon Flak Cannon Launcher Grenade Launcher Build | -11 -10 -9 -8 -7 -6 ------- Run | Yrd Mat Mat Mat Fac Fac Slots Evolved 8 | . . 2 2 2 2 Power 1 | . . . . . 1 Propulsion 2 | . . 2 . . . Utility 4 | . . . 1 2 1 Weapon 1 | . . . 1 . . Parts Attached 78 | 6 1 5 37 18 11 Power 10 | 1 . . 4 4 1 Engine 3 | 1 . . 1 1 . Core 7 | . . . 3 3 1 Reactor . | . . . . . . Propulsion 22 | 2 . 2 13 4 1 Treads 11 | . . . 7 4 . Leg 8 | 2 . 2 3 . 1 Wheel 3 | . . . 3 . . Hover . | . . . . . . Flight . | . . . . . . Utility 20 | 1 1 1 5 7 5 Device 8 | . . . . 6 2 Storage 2 | 1 . 1 . . . Processor 4 | . . . 1 . 3 Hackware . | . . . . . . Protection 6 | . 1 . 4 1 . Artifact . | . . . . . . Weapon 26 | 2 . 2 15 3 4 Energy Gun 13 | . . . 7 3 3 Energy Cannon . | . . . . . . Ballistic Gun 9 | 2 . 1 6 . . Ballistic Cannon 2 | . . . 2 . . Launcher 2 | . . 1 . . 1 Special Weapon . | . . . . . . Impact Weapon . | . . . . . . Slashing Weapon . | . . . . . . Piercing Weapon . | . . . . . . Special Melee Weapon . | . . . . . . Unidentified Prototypes 2 | . . . 1 . 1 Parts Lost 32 | . . . 11 4 17 Power 4 | . . . 1 1 2 Propulsion 9 | . . . 5 . 4 Utility 11 | . . . 1 3 7 Weapon 8 | . . . 4 . 4 Highest Loss Streak 8 | . . . 7 2 8 To Critical Strikes . | . . . . . . Average Slot Usage (%) 82 | . 91 94 86 98 40 Engine 3 | . 14 11 3 3 . Core 4 | . . . 4 3 7 Treads 14 | . . . 12 30 4 Leg 8 | . 28 38 10 . . Wheel 1 | . . . 4 . . Device 6 | . . . . 14 9 Storage 7 | . 14 11 9 7 1 Processor 6 | . . . 8 7 4 Protection 6 | . 6 11 8 5 . Energy Gun 12 | . . . 8 21 11 Ballistic Gun 7 | . 28 21 11 1 . Ballistic Cannon 1 | . . . 3 . . Naked Turns 87 | . . . . . 87 Heaviest Build 39 | 12 17 22 34 34 39 Greatest Support 82 | 20 20 40 82 82 82 Greatest Overweight (x) 8 | 1 . . 5 . 8 Average Overweight (x) . | . . . . . . Largest Inventory Capacity 10 | 8 8 10 10 10 10 Average Capacity 8 | 7 8 8 10 10 5 Most Carried 10 | 2 5 5 10 10 7 Average Carried 7 | . 3 3 8 9 5 Final Capacity 10 | 8 8 10 10 10 5 Final Carried 10 | 2 4 4 10 8 5 Class Distribution -------------------- 51% | Scavenger-Gunner 34% | Mutant 8% | Gunner 5% | Scavenger-Mutant Dominant Class ---------------- Mutant | -10/Materials Mutant | -9/Materials Scavenger-Gunner | -8/Materials Scavenger-Gunner | -7/Factory Mutant | -6/Factory Resources | -11 -10 -9 -8 -7 -6 ----------- Run | Yrd Mat Mat Mat Fac Fac Matter Collected 1482 | 157 . 287 874 164 . Remotely . | . . . . . . Salvage Created 2679 | . 21 289 1284 907 178 Parts 127 | . 4 20 72 30 1 Haulers Intercepted 3 | . . 1 1 1 . Recyclers Shooed 5 | . . 2 3 . . Parts Field Recycled . | . . . . . . Retrieved Matter . | . . . . . . Parts Self-Destructed . | . . . . . . Prevented . | . . . . . . Kills | -11 -10 -9 -8 -7 -6 ------- Run | Yrd Mat Mat Mat Fac Fac Combat Hostiles Destroyed 54 | . . 6 30 15 3 Melee 1 | . . . . 1 . Guns 42 | . . 2 24 13 3 Cannons 6 | . . . 6 . . AOE 4 | . . 4 . . . Classes Destroyed 14 | . 1 7 3 2 1 Worker 7 | . . 1 5 1 . Builder 2 | . . 2 . . . Tunneler 2 | . . . 2 . . Hauler 3 | . . 1 1 1 . Recycler 8 | . . 1 4 3 . Mechanic 1 | . . . . 1 . Operator 1 | . . . 1 . . Watcher 2 | . 1 . . 1 . Swarmer 23 | . . 4 12 7 . Grunt 17 | . . 1 11 4 1 Duelist 1 | . . . 1 . . Sentry 10 | . . 1 6 2 1 Programmer 2 | . . . . 2 . Heavy 1 | . . . . . 1 Best Kill Streak 8 | . 1 6 5 8 2 Combat Bots Only 5 | . . 4 3 5 2 Max Kills in Single Turn 3 | . 1 3 2 2 1 Gunslinging 1 | . . . . 1 . Exploded 3 | . . 3 . . . Melee 1 | . . . . 1 . Uniques/NPCs Destroyed . | . . . . . . Combat | -11 -10 -9 -8 -7 -6 -------- Run | Yrd Mat Mat Mat Fac Fac Hostile Shots Fired 624 | . . 24 223 143 234 Missed 199 | . . 4 60 44 91 Damage Taken 5266 | . . 246 1946 1136 1938 Core 1486 | . . 27 523 80 856 Absorbed by Shields 27 | . . . . 27 . Core Remaining (%) 77 | 100 100 93 4 88 . Volleys Fired 192 | . 1 22 95 51 23 Largest 3 | . 2 2 3 3 3 Hottest 207 | . 40 50 141 207 207 Shots Fired 446 | . 2 44 237 125 38 Gun 387 | . 2 41 186 125 33 Cannon 51 | . . . 51 . . Launcher 8 | . . 3 . . 5 Special . | . . . . . . Kinetic 189 | . 2 41 143 3 . Thermal 249 | . . . 94 122 33 Explosive 8 | . . 3 . . 5 Electromagnetic . | . . . . . . Robot Hit Streak 23 | . 2 7 12 18 23 Robot Miss Streak 9 | . . 1 9 4 1 Penetration Max . | . . . . . . Secondary Targets 4 | . . . 2 2 . Max Gunslinging Chain 1 | . . . 1 1 . Shots Hit Robots 315 | . 2 29 172 78 34 Core Hits 159 | . 2 18 93 32 14 Critical Kills . | . . . . . . Critical Parts Destroyed 1 | . . . 1 . . Critical Strikes 10 | . . . 6 4 . Burn 9 | . . . 5 4 . Destroy 1 | . . . 1 . . Melee Attacks . | . . . . . . Impact . | . . . . . . Slashing . | . . . . . . Piercing . | . . . . . . Sneak Attacks . | . . . . . . Combat Hostiles . | . . . . . . Follow-up Attacks . | . . . . . . Damage Inflicted 5588 | . 29 703 2509 1685 662 Guns 4356 | . 27 376 1685 1679 589 Cannons 773 | . . . 773 . . Explosions 377 | . . 315 . . 62 Melee . | . . . . . . Ramming 82 | . 2 12 51 6 11 Kinetic 1844 | . 27 376 1441 . . Thermal 3285 | . . . 1017 1679 589 Explosive 377 | . . 315 . . 62 Electromagnetic . | . . . . . . Impact . | . . . . . . Slashing . | . . . . . . Piercing . | . . . . . . Highest Corruption 7 | . 2 . 2 . 7 Average Corruption 2 | . 1 . 2 . 3 Corruption Purged . | . . . . . . Corruption Blocked . | . . . . . . Effects 28 | . 1 . 20 . 7 Message Errors 8 | . . . 6 . 2 Matter Fused 5 | . . . 3 . 2 Heat Flow Errors 1 | . 1 . . . . Energy Discharges 4 | . . . 4 . . Parts Rejected 5 | . . . 4 . 1 Data Loss (minor) 3 | . . . 2 . 1 Misfires 1 | . . . . . 1 Alerts 1 | . . . 1 . . Overload Shots . | . . . . . . Overflow Damage 6 | . . 6 . . . Projectiles . | . . . . . . Explosions 6 | . . 6 . . . Melee . | . . . . . . Knockbacks 23 | . . . 23 . . Impact . | . . . . . . Kinetic 23 | . . . 23 . . Secondary . | . . . . . . Self-Inflicted Damage 21 | . . 16 . . 5 Shots 2 | . . 2 . . . Rammed 10 | . . . 4 3 3 Targets Rammed 27 | . 1 1 18 4 3 Kicked 16 | . 1 1 14 . . Crushed 1 | . . . . 1 . Highest Temperature 614 | . 142 5 538 489 614 Average Temperature 137 | . 69 2 117 156 256 Received Heat Transfer 1589 | . . 57 756 254 522 Effects 24 | . . . 11 11 2 Shutdowns 6 | . . . 3 3 . Energy Bleed 2 | . . . 2 . . Interference 10 | . . . 4 6 . Matter Decay 1 | . . . 1 . . Short Circuit 4 | . . . 1 1 2 Damage (minor) 1 | . . . . 1 . Siege Activations . | . . . . . . Robots Corrupted . | . . . . . . Combat Hostiles . | . . . . . . Parts Fried . | . . . . . . Impact Corruptions . | . . . . . . Robots Melted 1 | . . . . 1 . Combat Hostiles 1 | . . . . 1 . Parts Melted 25 | . . . 7 11 7 Heat Transferred 7585 | . . . 3108 3330 1147 Parts Sabotaged . | . . . . . . Parts Stolen . | . . . . . . Parts Stripped . | . . . . . . Power Chain Reactions . | . . . . . . Alert | -11 -10 -9 -8 -7 -6 ------- Run | Yrd Mat Mat Mat Fac Fac Peak Influence 614 | . 22 241 614 500 251 Initial 235 | . . 9 101 235 161 Average 268 | . 6 120 335 339 157 Maximum Alert Level 2 | . . 1 2 2 1 Low Security (%) 32 | 100 100 72 14 . 87 Level 1 49 | . . 27 55 79 12 Level 2 17 | . . . 29 20 . Level 3 . | . . . . . . Level 4 . | . . . . . . Level 5 . | . . . . . . High Security . | . . . . . . Max Security . | . . . . . . Squads Dispatched 7 | . . 1 2 2 2 Investigation . | . . . . . . Extermination 2 | . . . . 2 . Reinforcement 5 | . . 1 2 . 2 Assault . | . . . . . . Garrison . | . . . . . . Intercept . | . . . . . . Searches Triggered . | . . . . . . Construction Impeded . | . . . . . . Haulers Reinforced . | . . . . . . Active Scanning Responses . | . . . . . . Cargo Convoy Interrupts . | . . . . . . Stealth | -11 -10 -9 -8 -7 -6 --------- Run | Yrd Mat Mat Mat Fac Fac Distress Signals 5 | . . . 4 1 . Communications Jammed . | . . . . . . Distress Signals . | . . . . . . Times Spotted 98 | . 2 9 49 19 19 Peak Tracking Total 8 | . 1 6 8 5 6 Tactical Retreats 9 | . . . 3 . 6 Traps | -11 -10 -9 -8 -7 -6 ------- Run | Yrd Mat Mat Mat Fac Fac Traps Triggered 6 | . 2 . 1 1 2 Indirectly . | . . . . . . Trap Hack Attempts . | . . . . . . Triggered . | . . . . . . Disarmed . | . . . . . . Reprogrammed . | . . . . . . Reused . | . . . . . . Traps Extracted . | . . . . . . Installed . | . . . . . . Triggered . | . . . . . . Machines | -11 -10 -9 -8 -7 -6 ---------- Run | Yrd Mat Mat Mat Fac Fac Machines Disabled 2 | . . . . 1 1 Max in Single Turn 1 | . . . . 1 1 Machines Repaired . | . . . . . . Machines Dismantled . | . . . . . . Machines Sabotaged . | . . . . . . Overloaded Fab Kills . | . . . . . . Hacking | -11 -10 -9 -8 -7 -6 --------- Run | Yrd Mat Mat Mat Fac Fac Machines Accessed . | . . . . . . Terminals . | . . . . . . Fabricators . | . . . . . . Repair Stations . | . . . . . . Recycling Units . | . . . . . . Scanalyzers . | . . . . . . Garrison Access . | . . . . . . Total Hacks . | . . . . . . Successful . | . . . . . . Failed . | . . . . . . Catastrophic . | . . . . . . Database Lockouts . | . . . . . . Manual . | . . . . . . Terminals . | . . . . . . Fabricators . | . . . . . . Repair Stations . | . . . . . . Recycling Units . | . . . . . . Scanalyzers . | . . . . . . Garrison Access . | . . . . . . Terminal Hacks . | . . . . . . Fabricator Hacks . | . . . . . . Repair Station Hacks . | . . . . . . Recycling Unit Hacks . | . . . . . . Scanalyzer . | . . . . . . Garrison Access Hacks . | . . . . . . Unauthorized Hacks . | . . . . . . Terminals . | . . . . . . Fabricators . | . . . . . . Repair Stations . | . . . . . . Recycling Units . | . . . . . . Scanalyzers . | . . . . . . Garrison Access . | . . . . . . Data Cores Recovered 1 | . . . 1 . . Used . | . . . . . . Hacking Detections . | . . . . . . Full Trace Events . | . . . . . . Feedback Events . | . . . . . . Feedback Blocked . | . . . . . . Robot Schematics Acquired . | . . . . . . Robots Built . | . . . . . . Authchips . | . . . . . . Time . | . . . . . . Total Robot Build Rating . | . . . . . . Part Schematics Acquired . | . . . . . . Parts Built . | . . . . . . Authchips . | . . . . . . Time . | . . . . . . Total Part Build Rating . | . . . . . . Parts Repaired . | . . . . . . Time . | . . . . . . Parts Recycled . | . . . . . . Recycled Matter . | . . . . . . Retrieved Matter . | . . . . . . Retrieved Components . | . . . . . . Parts Scanalyzed . | . . . . . . Part Schematics Acquired . | . . . . . . Parts Damaged . | . . . . . . Bothacking | -11 -10 -9 -8 -7 -6 ------------ Run | Yrd Mat Mat Mat Fac Fac Used RIF Installer . | . . . . . . Robots Hacked . | . . . . . . Non-combat . | . . . . . . Combat . | . . . . . . Robot Hacks Applied . | . . . . . . Relay Couplers Released . | . . . . . . Fabnet Peak Effective % . | . . . . . . Robots Rewired . | . . . . . . Allies Hacked . | . . . . . . Hacks Repelled . | . . . . . . Allies | -11 -10 -9 -8 -7 -6 -------- Run | Yrd Mat Mat Mat Fac Fac Total Allies . | . . . . . . Largest Group . | . . . . . . Highest-Rated Group . | . . . . . . Highest-Rated Ally . | . . . . . . Total Orders . | . . . . . . Ally Attacks . | . . . . . . Total Damage . | . . . . . . Kills . | . . . . . . Allies Corrupted . | . . . . . . Allies Melted . | . . . . . . Intel | -11 -10 -9 -8 -7 -6 ------- Run | Yrd Mat Mat Mat Fac Fac Robot Analysis Total . | . . . . . . Derelict Logs Recovered . | . . . . . . Drone Launches . | . . . . . . Drone Recoveries . | . . . . . . Exploration | -11 -10 -9 -8 -7 -6 ------------- Run | Yrd Mat Mat Mat Fac Fac Turns Passed 3368 | 63 143 230 1308 1001 623 Spaces Moved 1847 | 50 113 116 565 507 496 Core 456 | 12 . . 13 . 431 Treads 787 | . . . 235 507 45 Legs 448 | 38 113 116 161 . 20 Wheels 156 | . . . 156 . . Hover . | . . . . . . Flight . | . . . . . . Fastest Speed 50 | 50 120 120 90 156 50 Average Speed 131 | 104 120 120 138 156 105 Slowest Speed 450 | 120 120 120 300 156 450 Overloaded Moves . | . . . . . . Propulsion Burnouts . | . . . . . . Robots Hopped . | . . . . . . Cave-ins Triggered . | . . . . . . Exploration Rate (%) 21 | 3 20 17 52 20 15 Regions Visited 5 Branch Regions . Pre-discovered Areas . | . . . . . . Known Exits Taken . | . . . . . . Unknown Exits Taken 5 | 1 1 1 1 1 . Scrap Searched . | . . . . . . Spaces Dug . | . . . . . . Terrain Destroyed 34 | . . 24 . . 10 Melee . | . . . . . . Projectile . | . . . . . . AOE 34 | . . 24 . . 10 Terrain Rammed . | . . . . . . Walls Destroyed . | . . . . . . Machines Disabled . | . . . . . . Actions | -11 -10 -9 -8 -7 -6 --------- Run | Yrd Mat Mat Mat Fac Fac Total 2406 | 58 118 162 881 622 565 Wait 204 | . . 16 133 27 28 Move 1842 | 49 112 115 564 506 496 Hop . | . . . . . . Pick Up 24 | 3 3 1 13 4 . Fast Attach 37 | 5 . 1 19 4 8 Attach 17 | 1 1 2 5 5 3 Detach 4 | . . 1 . . 3 Swap 24 | . . 2 13 9 . Drop 35 | . . 1 21 12 1 Fire 192 | . 1 22 95 51 23 Melee . | . . . . . . Ram 4 | . . . 1 . 3 Kick 16 | . 1 1 14 . . Crush 7 | . . . 3 4 . Escape Stasis . | . . . . . . Rewire . | . . . . . . Trap . | . . . . . . Miscellaneous . | . . . . . . Route ------- -11/Scrapyard -10/Materials -9/Materials -8/Materials -7/Factory -6/Factory (discovered 1 exit: [*Fac]) History --------- Turn | Location | Event 46 | -11/Scrapyard | Discovered new exit (range 16) 64 | -11/Scrapyard | Entered Materials 194 | -10/Materials | Discovered new exit (range 5) 207 | -10/Materials | Entered another Materials area 207 | -9/Materials | Evolved 2 slots: Propulsion x2 306 | -9/Materials | Build established: Mutant 410 | -9/Materials | Discovered new exit (range 13) 437 | -9/Materials | Entered another Materials area 437 | -8/Materials | Evolved 2 slots: Utility x1, Weapon x1 830 | -8/Materials | Core integrity fell below 50% 857 | -8/Materials | Lost 7 parts (1p2n1u3w) 1023 | -8/Materials | Core integrity fell below 20% 1324 | -8/Materials | Build established: Scavenger-Gunner 1708 | -8/Materials | Discovered new exit (range 16) 1745 | -8/Materials | Entered Factory 1745 | -7/Factory | Evolved 2 slots: Utility x2 2710 | -7/Factory | Discovered new exit (range 16) 2746 | -7/Factory | Entered another Factory area 2746 | -6/Factory | Evolved 2 slots: Power x1, Utility x1 2883 | -6/Factory | Lost 8 parts (4n3u1w) 3150 | -6/Factory | Build established: Mutant 3164 | -6/Factory | Lost 6 parts (2p2u2w) 3296 | -6/Factory | Core integrity fell below 50% 3360 | -6/Factory | Core integrity fell below 20% 3361 | -6/Factory | Discovered new exit (range 15) 3369 | -6/Factory | Destroyed by Y-54 Guardian with Gatling Laser Last Messages --------------- 03280_ ALERT: Cargo convoy en route, clear transfer corridor. 03296_ Acquired Flexi-carbon Leg. 03297_ ALERT: Security rotation in progress. 03301_ Acquired Adv. Targeting Computer. 03303_ RFO3IUPBJJMZSN&RWICFMP|#2MK#584 03319_ System corrupted: FCS attempts to trigger Grenade Launcher. 03319_ System corrupted: Grenade Launcher misfires. 03319_ Construction Platform disabled. 03325_ Grenade Launcher destroyed. 03332_ U-05 Engineer lays Concrete. 03335_ U-05 Engineer destroyed. 03336_ K-01 Serf collects debris. 03336_ Acquired Unknown Processor. 03336_ Identified Terrain Scan Processor. 03338_ Discarded Terrain Scan Processor. 03342_ K-01 Serf collects debris. 03361_ EXIT=FOUND 03366_ Slammed into Y-54 Guardian. 03367_ Destabilizing: System corrupted (+1). 03368_ Slammed into Y-54 Guardian. Map ----- +----------------------------------------------------+ | ?????????????????????????????????????????????????? | | ?????????????????????????????????????????????????? | | ?????????????????????????????????????????????????? | | ?????????????????????????????????????????????????? | | ?????????????????????????????????????????????????? | | ?????????????????????????????????????????????????? | | ?????????????????????????????????????????????????? | | ?????????????????????????????????????????????????? | | ?????????????????????????????????????????????????? | | ?????????????????? ??????????????????????????????? | | ?????????????????? ??????????????????????????????? | | ?????????????? ??????????????????????????????? | | ?????????????????? ??????????????????????????????? | | ?????????????????? ??????????????????????????????? | | ?????????????????? ??????????????????????????????? | | ?????????########? ??????????????????????????????? | | ?????????? ## #?????????????????????????????? | | ??????????" ## #?????????????????????????????? | | ??????????? # ?????????????????????????????? | | ??????????? + = ?????????????????????????????? | | ????????????!!! # ?????????????????????????????? | | ????????????!!! ## #?????????????????????????????? | | ?????????????! ?# #???????#####?????????????????? | | ????????????? ## ##????? #?????????????????? | | ???????#######+##! ###### #?????????????????? | | #####??# Y! @Y < +?????????????????? | | #??# ######## ###### ! #?????????????????? | | #### # ####+######? #?????????????????? | | + + # #??#+###?????????????????? | | #### # # #????????????????????????? | | #??# # # """ """ #????????????????????????? | | #??# # # """ """ #????????????????????????? | | #??# # + """ """ #????????????????????????? | | #### # # #????????????????????????? | | + # # !#????????????????????????? | | #### # # #????????????????????????? | | #??# ####+###########????????????????????????? | | #??# #??# #??????????????????????????????????? | | #####??# #??# #??????????????????????????????????? | | ???????# #??# #??????????????????????????????????? | | ??????? #??# #??????????????????????????????????? | | ???????# #??# #??????????????????????????????????? | | ???????# #??# #??######??????????????????????????? | | ???????? ???# #?? ???????????????????????????? | | ???????? ??## ## """" ???????????????????????????? | | ???????# ### ! # """" #??????????????????????????? | | ???????# + """" #??????????????????????????? | | ???????##### # """" #??????????????????????????? | | ???????????## ## #??????????????????????????? | | ????????????# #??######??????????????????????????? | +----------------------------------------------------+ Best States ------------- Heat Dissipation 67 Energy Generation 24 Energy Capacity 210 Matter Stores 300 Matter Capacity 300 Sight Range 16 Terrain Scan Density 10 Base Temperature (-) 100 Armor Coverage 150 Weapon Cycling 15 Evasion (%) 55 Targeting Accuracy 8 Melee Accuracy 8 Recoil Reduction 4 Particle Charging 15 Item Schematics ----------------- None Robot Schematics ------------------ None Fabricated ------------ Nothing Alien Tech Used ----------------- None Achievements -------------- None Challenges ------------ None Game ------ Seed ResetSurgeReactor Manual? 0 Play Time 00:33:34 Cumulative 85.3 hours Start 2024.04.11 @ 18:05:29 End 2024.04.11 @ 18:40:43 Sessions 1 Manual Loads 0 Difficulty Rogue Special Mode None Game No. 178 Rogue 178 Adventurer 0 Explorer 0 Win Type - Total 0 Types 0/0/0/0/0/0/0/0/0 Lore% 29 Gallery% 45 Achievement% 32 Wizard Run 0 Options --------- Layout 0 ASCII 0 Keyboard 1 Movement Numpad Keybinds 0 Fullscreen 1 Font 24/Terminus Map View 76x50 Zoom Use 0% Tactical HUD 1 Map Filters NONE Filters NONE Steam 1 RUN: 430ddf65-ac66-475d-bf51-cd533a9ec8cf